[Event "Championnat de France Universitaire 2022"]
[Site "Limoges, France"]
[Date "2022.02.06"]
[Round "8.4"]
[White "Aghamir Alrobiai, Nizar"]
[Black "Dubuisson, Samuel"]
[Result "1-0"]
[TimeControl "15'+5''"]
[WhiteElo "2118"]
[BlackElo "2039"]

1. e4 {[%clk 00:15:08]} {[%emt 00:00:01]} d6 {[%clk 00:15:09]} {[%emt
00:00:03]} 2. d4 {[%clk 00:15:11]} Nf6 {[%clk 00:15:13]} {[%emt 00:00:01]} 3.
Nc3 {[%clk 00:15:15]} Nbd7 {[%clk 00:15:17]} {[%emt 00:00:02]} 4. f4 {[%clk
00:14:04]} {[%emt 00:01:15]} e5 {[%clk 00:15:20]} {[%emt 00:00:02]} 5. Nf3
{[%clk 00:14:08]} exd4 {[%clk 00:15:24]} {[%emt 00:00:01]} 6. Qxd4 {[%clk
00:13:44]} {[%emt 00:00:29]} c6 {[%clk 00:15:27]} {[%emt 00:00:02]} 7. Be3
{[%clk 00:13:24]} {[%emt 00:00:25]} d5 {[%clk 00:15:31]} {[%emt 00:00:02]} 8.
exd5 {[%clk 00:11:49]} {[%emt 00:01:41]} Bc5 {[%clk 00:15:35]} 9. Qd2 {[%clk
00:11:53]} {[%emt 00:00:01]} Qe7 {[%clk 00:14:21]} {[%emt 00:01:19]} 10. Nd4
{[%clk 00:11:19]} {[%emt 00:00:39]} Nxd5 {[%clk 00:10:21]} {[%emt 00:04:05]} 11.
Nxd5 {[%clk 00:10:39]} {[%emt 00:00:45]} cxd5 {[%clk 00:10:25]} 12. Nf5 {[%clk
00:08:29]} {[%emt 00:02:14]} Bxe3 {[%clk 00:05:18]} {[%emt 00:05:13]} 13. Qxe3
{[%clk 00:08:20]} {[%emt 00:00:14]} Qxe3+ {[%clk 00:05:22]} {[%emt 00:00:01]}
14. Nxe3 {[%clk 00:08:23]} {[%emt 00:00:01]} d4 {[%clk 00:03:29]} {[%emt
00:01:58]} 15. Nf5 {[%clk 00:08:06]} {[%emt 00:00:22]} O-O {[%clk 00:03:32]}
{[%emt 00:00:03]} 16. O-O-O {[%clk 00:07:59]} {[%emt 00:00:11]} Nc5 {[%clk
00:03:06]} {[%emt 00:00:31]} 17. Ne7+ {[%clk 00:06:31]} {[%emt 00:01:33]} Kh8
{[%clk 00:03:10]} {[%emt 00:00:01]} 18. Nxc8 {[%clk 00:06:35]} {[%emt
00:00:02]} Raxc8 {[%clk 00:03:11]} {[%emt 00:00:03]} 19. Rxd4 {[%clk 00:06:37]}
{[%emt 00:00:03]} Ne6 {[%clk 00:01:40]} {[%emt 00:01:37]} 20. Rb4 {[%clk
00:05:42]} {[%emt 00:00:59]} b6 {[%clk 00:01:19]} {[%emt 00:00:27]} 21. g3
{[%clk 00:05:41]} {[%emt 00:00:05]} Nc5 {[%clk 00:00:43]} {[%emt 00:00:42]} 22.
Rd4 {[%clk 00:05:20]} {[%emt 00:00:25]} Rfe8 {[%clk 00:00:44]} {[%emt
00:00:04]} 23. Bb5 {[%clk 00:05:10]} {[%emt 00:00:13]} Re7 {[%clk 00:00:26]}
{[%emt 00:00:24]} 24. Rhd1 {[%clk 00:05:14]} {[%emt 00:00:01]} g6 {[%clk
00:00:22]} {[%emt 00:00:10]} 25. Rd8+ {[%clk 00:04:57]} {[%emt 00:00:22]} Rxd8
{[%clk 00:00:26]} 26. Rxd8+ {[%clk 00:05:01]} Kg7 {[%clk 00:00:31]} 27. Re8
{[%clk 00:04:22]} {[%emt 00:00:44]} Rc7 {[%clk 00:00:28]} {[%emt 00:00:08]} 28.
Re3 {[%clk 00:03:26]} {[%emt 00:01:01]} Kf6 {[%clk 00:00:20]} {[%emt 00:00:13]}
29. Be2 {[%clk 00:03:19]} {[%emt 00:00:10]} h5 {[%clk 00:00:20]} {[%emt
00:00:07]} 30. Bf3 {[%clk 00:03:14]} {[%emt 00:00:09]} Rd7 {[%clk 00:00:23]}
{[%emt 00:00:02]} 31. b4 {[%clk 00:02:52]} {[%emt 00:00:27]} Ne6 {[%clk
00:00:19]} {[%emt 00:00:09]} 32. c3 {[%clk 00:02:53]} {[%emt 00:00:04]} Ng7
{[%clk 00:00:16]} {[%emt 00:00:08]} 33. Kc2 {[%clk 00:02:49]} {[%emt 00:00:09]}
Nf5 {[%clk 00:00:20]} {[%emt 00:00:01]} 34. Re2 {[%clk 00:01:49]} {[%emt
00:01:03]} Rc7 {[%clk 00:00:13]} {[%emt 00:00:14]} 35. Kb3 {[%clk 00:01:53]}
Rd7 {[%clk 00:00:16]} {[%emt 00:00:02]} 36. Be4 {[%clk 00:01:12]} {[%emt
00:00:45]} Re7 {[%clk 00:00:08]} {[%emt 00:00:14]} 37. Bd3 {[%clk 00:01:14]}
{[%emt 00:00:02]} Rd7 {[%clk 00:00:12]} {[%emt 00:00:02]} 38. Bxf5 Kxf5 {[%clk
00:00:16]} 39. h3 {[%clk 00:01:11]} {[%emt 00:00:03]} h4 {[%clk 00:00:18]}
{[%emt 00:00:04]} 40. Re5+ {[%clk 00:01:15]} Kf6 {[%clk 00:00:21]} {[%emt
00:00:02]} 41. gxh4 {[%clk 00:00:56]} {[%emt 00:00:23]} Rd3 {[%clk 00:00:26]}
42. h5 {[%clk 00:01:00]} Rxh3 {[%clk 00:00:30]} {[%emt 00:00:01]} 43. hxg6
{[%clk 00:01:04]} {[%emt 00:00:01]} fxg6 {[%clk 00:00:32]} {[%emt 00:00:03]} 44.
Rd5 {[%clk 00:00:54]} {[%emt 00:00:15]} Ke6 {[%clk 00:00:17]} {[%emt 00:00:20]}
45. Rd8 {[%clk 00:00:43]} {[%emt 00:00:15]} Kf5 {[%clk 00:00:14]} {[%emt
00:00:09]} 46. Rf8+ {[%clk 00:00:40]} {[%emt 00:00:07]} Ke6 {[%clk 00:00:08]}
{[%emt 00:00:11]} 47. a4 {[%clk 00:00:39]} {[%emt 00:00:07]} Rf3 {[%clk
00:00:11]} {[%emt 00:00:01]} 48. Rg8 {[%clk 00:00:38]} {[%emt 00:00:06]} Kf5
{[%clk 00:00:11]} {[%emt 00:00:05]} 49. Rg7 {[%clk 00:00:38]} {[%emt 00:00:05]}
a5 {[%clk 00:00:12]} {[%emt 00:00:04]} 50. Rf7+ {[%clk 00:00:22]} {[%emt
00:00:21]} Ke6 {[%clk 00:00:13]} {[%emt 00:00:02]} 51. Rb7 {[%clk 00:00:23]}
{[%emt 00:00:06]} Rxf4 {[%clk 00:00:06]} {[%emt 00:00:12]} 52. Rxb6+ {[%clk
00:00:27]} {[%emt 00:00:02]} Kf5 {[%clk 00:00:10]} 53. bxa5 {[%clk 00:00:27]}
{[%emt 00:00:05]} Rf1 {[%clk 00:00:14]} {[%emt 00:00:02]} 54. Rd6 {[%clk
00:00:14]} {[%emt 00:00:18]} Rb1+ {[%clk 00:00:12]} {[%emt 00:00:07]} 55. Kc4
{[%clk 00:00:18]} g5 {[%clk 00:00:10]} {[%emt 00:00:07]} 56. a6 {[%clk
00:00:22]} {[%emt 00:00:01]} Ra1 {[%clk 00:00:13]} {[%emt 00:00:03]} 57. Kb5
{[%clk 00:00:20]} {[%emt 00:00:06]} Rb1+ {[%clk 00:00:16]} {[%emt 00:00:02]} 58.
Ka5 {[%clk 00:00:24]} {[%emt 00:00:01]} Ke5 {[%clk 00:00:19]} {[%emt 00:00:03]}
59. Rg6 {[%clk 00:00:25]} {[%emt 00:00:03]} Kd5 {[%clk 00:00:07]} {[%emt
00:00:17]} 60. Rxg5 {[%clk 00:00:27]} {[%emt 00:00:03]} Kc6 {[%clk 00:00:11]}
61. Rb5 {[%clk 00:00:32]} Rh1 {[%clk 00:00:10]} {[%emt 00:00:06]} 62. a7 {[%clk
00:00:36]} {[%emt 00:00:01]} Rh8 {[%clk 00:00:13]} {[%emt 00:00:03]} 63. Rb8
{[%clk 00:00:37]} {[%emt 00:00:03]} Rh5+ {[%clk 00:00:16]} 64. Kb4 {[%clk
00:00:36]} {[%emt 00:00:06]} Rh4+ {[%clk 00:00:18]} {[%emt 00:00:03]} 65. c4
{[%clk 00:00:40]} {[%emt 00:00:02]} 1-0

[Event "Championnat de France Universitaire 2022"]
[Site "Limoges, France"]
[Date "2022.02.06"]
[Round "8.5"]
[White "Blanchet, Mathieu"]
[Black "Gault, Emmanuel"]
[Result "0-1"]
[TimeControl "15'+5''"]
[WhiteElo "1977"]
[BlackElo "2041"]

1. d4 {[%clk 00:15:08]} {[%emt 00:00:02]} Nf6 {[%clk 00:15:08]} {[%emt
00:00:02]} 2. Bg5 {[%clk 00:15:11]} {[%emt 00:00:01]} e6 {[%clk 00:15:11]}
{[%emt 00:00:02]} 3. e4 {[%clk 00:15:15]} {[%emt 00:00:03]} h6 {[%clk
00:15:09]} {[%emt 00:00:07]} 4. Bxf6 {[%clk 00:15:19]} Qxf6 {[%clk 00:15:12]}
{[%emt 00:00:02]} 5. c3 {[%clk 00:15:22]} {[%emt 00:00:01]} d5 {[%clk
00:15:07]} {[%emt 00:00:10]} 6. e5 {[%clk 00:14:53]} {[%emt 00:00:35]} Qd8
{[%clk 00:15:10]} {[%emt 00:00:02]} 7. Bd3 {[%clk 00:14:34]} {[%emt 00:00:24]}
c5 {[%clk 00:15:11]} {[%emt 00:00:04]} 8. Ne2 {[%clk 00:13:15]} {[%emt
00:01:24]} Nc6 {[%clk 00:15:08]} {[%emt 00:00:07]} 9. O-O {[%clk 00:12:53]}
{[%emt 00:00:27]} Bd7 {[%clk 00:15:08]} {[%emt 00:00:05]} 10. Nd2 {[%clk
00:11:54]} {[%emt 00:01:04]} Rb8 {[%clk 00:15:04]} {[%emt 00:00:09]} 11. f4
{[%clk 00:11:35]} {[%emt 00:00:24]} Qb6 {[%clk 00:14:54]} {[%emt 00:00:15]} 12.
Nf3 {[%clk 00:10:44]} {[%emt 00:00:56]} Qxb2 {[%clk 00:14:43]} {[%emt
00:00:16]} 13. a3 {[%clk 00:09:05]} {[%emt 00:01:44]} Qb6 {[%clk 00:14:39]}
{[%emt 00:00:08]} 14. Kh1 {[%clk 00:08:41]} {[%emt 00:00:29]} Be7 {[%clk
00:14:21]} {[%emt 00:00:22]} 15. g4 {[%clk 00:08:14]} {[%emt 00:00:33]} h5
{[%clk 00:13:09]} {[%emt 00:01:17]} 16. g5 {[%clk 00:07:31]} {[%emt 00:00:48]}
g6 {[%clk 00:13:11]} {[%emt 00:00:04]} 17. Rb1 {[%clk 00:07:02]} {[%emt
00:00:34]} Qa5 {[%clk 00:12:50]} {[%emt 00:00:25]} 18. a4 {[%clk 00:06:51]}
{[%emt 00:00:17]} cxd4 {[%clk 00:12:46]} {[%emt 00:00:08]} 19. Rb5 {[%clk
00:06:29]} {[%emt 00:00:27]} Qc7 {[%clk 00:12:32]} {[%emt 00:00:20]} 20. cxd4
{[%clk 00:05:57]} {[%emt 00:00:37]} Nb4 {[%clk 00:12:31]} {[%emt 00:00:05]} 21.
Rxb4 {[%clk 00:04:42]} {[%emt 00:01:21]} Bxb4 {[%clk 00:12:33]} {[%emt
00:00:02]} 22. f5 {[%clk 00:04:44]} {[%emt 00:00:04]} exf5 {[%clk 00:11:09]}
{[%emt 00:01:28]} 23. Qb3 {[%clk 00:04:14]} {[%emt 00:00:35]} Qa5 {[%clk
00:10:51]} {[%emt 00:00:23]} 24. Rb1 {[%clk 00:03:45]} {[%emt 00:00:35]} Be7
{[%clk 00:10:28]} {[%emt 00:00:28]} 25. Nf4 {[%clk 00:03:46]} {[%emt 00:00:04]}
Qxa4 {[%clk 00:09:23]} {[%emt 00:01:10]} 26. Qb2 {[%clk 00:02:00]} {[%emt
00:01:51]} Bc6 {[%clk 00:09:04]} {[%emt 00:00:23]} 27. e6 {[%clk 00:01:49]}
{[%emt 00:00:17]} Bd6 {[%clk 00:08:14]} {[%emt 00:00:54]} 28. exf7+ {[%clk
00:01:15]} {[%emt 00:00:39]} Kxf7 {[%clk 00:08:17]} {[%emt 00:00:02]} 29. Ra1
{[%clk 00:00:58]} {[%emt 00:00:22]} Qb4 {[%clk 00:07:59]} {[%emt 00:00:23]} 30.
Ne5+ {[%clk 00:01:02]} {[%emt 00:00:01]} Kg7 {[%clk 00:06:55]} {[%emt
00:01:10]} 31. Qxb4 {[%clk 00:00:30]} {[%emt 00:00:38]} Bxb4 {[%clk 00:06:57]}
{[%emt 00:00:02]} 32. Nxc6 {[%clk 00:00:34]} {[%emt 00:00:01]} bxc6 {[%clk
00:06:45]} {[%emt 00:00:17]} 33. Rxa7+ {[%clk 00:00:38]} {[%emt 00:00:01]} Kg8
{[%clk 00:06:41]} {[%emt 00:00:08]} 34. Nxg6 {[%clk 00:00:31]} {[%emt
00:00:12]} Rh7 {[%clk 00:06:43]} {[%emt 00:00:03]} 35. Ra6 {[%clk 00:00:23]}
{[%emt 00:00:13]} Bd2 {[%clk 00:06:03]} {[%emt 00:00:44]} 36. Bxf5 {[%clk
00:00:16]} {[%emt 00:00:13]} Bxg5 {[%clk 00:05:10]} {[%emt 00:00:57]} 37. Rxc6
{[%emt 00:00:14]} Ra7 {[%clk 00:05:07]} {[%emt 00:00:05]} 38. Ne5 {[%clk
00:00:09]} {[%emt 00:00:06]} Ra1+ {[%clk 00:04:36]} {[%emt 00:00:35]} 39. Kg2
{[%clk 00:00:14]} Rb2+ {[%clk 00:04:39]} {[%emt 00:00:02]} 40. Kf3 {[%clk
00:00:17]} {[%emt 00:00:02]} Rf1+ {[%clk 00:04:33]} {[%emt 00:00:10]} 41. Kg3
{[%clk 00:00:20]} {[%emt 00:00:04]} Bf4+ {[%clk 00:04:32]} {[%emt 00:00:04]} 42.
Kh4 {[%clk 00:00:22]} {[%emt 00:00:04]} Rxh2+ {[%clk 00:04:29]} {[%emt
00:00:08]} 43. Bh3 {[%clk 00:00:26]} Rfh1 {[%clk 00:03:58]} {[%emt 00:00:37]}
44. Rc3 {[%clk 00:00:13]} {[%emt 00:00:19]} Bxe5 {[%clk 00:03:35]} {[%emt
00:00:28]} 45. dxe5 {[%clk 00:00:16]} {[%emt 00:00:01]} Kf7 {[%clk 00:03:38]}
{[%emt 00:00:01]} 46. e6+ {[%clk 00:00:19]} {[%emt 00:00:03]} Ke7 {[%clk
00:03:11]} {[%emt 00:00:32]} 47. Rc7+ {[%clk 00:00:20]} {[%emt 00:00:04]} Kd8
{[%clk 00:02:54]} {[%emt 00:00:20]} 48. Rd7+ {[%clk 00:00:13]} {[%emt
00:00:14]} Ke8 {[%clk 00:02:55]} {[%emt 00:00:03]} 49. Rxd5 {[%clk 00:00:15]}
{[%emt 00:00:04]} Rxh3+ {[%clk 00:02:57]} {[%emt 00:00:02]} 50. Kg5 {[%clk
00:00:19]} {[%emt 00:00:02]} Ke7 {[%clk 00:02:49]} {[%emt 00:00:13]} 51. Kf5
{[%emt 00:00:05]} Rf1+ {[%clk 00:02:46]} {[%emt 00:00:07]} 52. Ke5 {[%clk
00:00:16]} {[%emt 00:00:10]} Re3+ {[%clk 00:02:48]} {[%emt 00:00:01]} 53. Kd4
{[%clk 00:00:19]} {[%emt 00:00:03]} Rd1+ {[%clk 00:02:50]} {[%emt 00:00:03]}
0-1

[ePGN "0.1;DGT LiveChess/2.2.5"]

[Event "Championnat de France Universitaire 2022"]
[Site "Limoges, France"]
[Date "2022.02.06"]
[Round "9.1"]
[White "Profili, Emilio"]
[Black "Rakotomaharo, Fy Antenaina"]
[Result "0-1"]
[TimeControl "15'+5''"]
[WhiteElo "2097"]
[BlackElo "2474"]

1. e4 {[%clk 00:15:08]} {[%emt 00:00:01]} e5 {[%clk 00:15:09]} {[%emt
00:00:02]} 2. Nf3 {[%clk 00:15:11]} {[%emt 00:00:02]} Nc6 {[%clk 00:15:13]}
{[%emt 00:00:01]} 3. Bc4 {[%clk 00:15:15]} {[%emt 00:00:01]} Bc5 {[%clk
00:15:16]} {[%emt 00:00:02]} 4. c3 {[%clk 00:15:19]} Nf6 {[%clk 00:15:20]} 5.
d3 {[%clk 00:15:23]} {[%emt 00:00:01]} a5 {[%clk 00:15:17]} {[%emt 00:00:08]} 6.
a4 {[%clk 00:15:13]} {[%emt 00:00:16]} d6 {[%clk 00:15:18]} {[%emt 00:00:03]} 7.
Bb3 {[%clk 00:15:13]} {[%emt 00:00:05]} O-O {[%clk 00:15:12]} {[%emt 00:00:12]}
8. h3 {[%clk 00:15:00]} {[%emt 00:00:17]} Ne7 {[%clk 00:15:13]} {[%emt
00:00:04]} 9. O-O {[%clk 00:14:58]} {[%emt 00:00:07]} Ng6 {[%clk 00:15:10]}
{[%emt 00:00:08]} 10. d4 {[%clk 00:15:00]} {[%emt 00:00:04]} Ba7 {[%clk
00:13:29]} {[%emt 00:01:46]} 11. Re1 {[%clk 00:14:44]} {[%emt 00:00:20]} h6
{[%clk 00:13:29]} {[%emt 00:00:06]} 12. Nbd2 {[%clk 00:14:38]} {[%emt
00:00:10]} Re8 {[%clk 00:13:27]} {[%emt 00:00:06]} 13. Bc2 {[%clk 00:12:58]}
{[%emt 00:01:47]} Nh5 {[%clk 00:13:04]} {[%emt 00:00:27]} 14. Nc4 {[%clk
00:11:10]} {[%emt 00:01:53]} Qf6 {[%clk 00:11:44]} {[%emt 00:01:25]} 15. Ne3
{[%clk 00:08:02]} {[%emt 00:03:13]} Nhf4 {[%clk 00:10:41]} {[%emt 00:01:07]} 16.
Nd5 {[%clk 00:07:42]} {[%emt 00:00:26]} Nxd5 {[%clk 00:10:33]} {[%emt
00:00:14]} 17. exd5 {[%clk 00:07:46]} Bf5 {[%clk 00:10:04]} {[%emt 00:00:34]}
18. dxe5 {[%clk 00:07:01]} {[%emt 00:00:50]} dxe5 {[%clk 00:08:50]} {[%emt
00:01:19]} 19. Bxf5 {[%clk 00:06:02]} {[%emt 00:01:04]} Qxf5 {[%clk 00:08:53]}
{[%emt 00:00:01]} 20. Be3 {[%clk 00:05:49]} {[%emt 00:00:18]} Bxe3 {[%clk
00:08:44]} {[%emt 00:00:14]} 21. Rxe3 {[%clk 00:05:46]} {[%emt 00:00:08]} e4
{[%clk 00:08:05]} {[%emt 00:00:44]} 22. Nh2 {[%clk 00:05:34]} {[%emt 00:00:16]}
Nf4 {[%clk 00:07:31]} {[%emt 00:00:39]} 23. c4 {[%clk 00:04:46]} {[%emt
00:00:54]} Ra6 {[%clk 00:07:34]} {[%emt 00:00:02]} 24. Nf1 {[%clk 00:04:36]}
{[%emt 00:00:14]} Qe5 {[%clk 00:07:12]} {[%emt 00:00:27]} 25. Qc2 {[%clk
00:04:16]} {[%emt 00:00:25]} Rb6 {[%clk 00:06:15]} {[%emt 00:01:03]} 26. Rb1
{[%clk 00:03:41]} {[%emt 00:00:40]} f5 {[%clk 00:06:12]} {[%emt 00:00:08]} 27.
b3 {[%clk 00:03:07]} {[%emt 00:00:40]} Nd3 {[%clk 00:05:46]} {[%emt 00:00:30]}
28. f3 {[%clk 00:02:25]} {[%emt 00:00:47]} Qd4 {[%clk 00:05:42]} {[%emt
00:00:09]} 29. Kh1 {[%clk 00:02:29]} {[%emt 00:00:01]} f4 {[%clk 00:04:53]}
{[%emt 00:00:54]} 30. Rxe4 {[%clk 00:02:12]} {[%emt 00:00:22]} Nf2+ {[%clk
00:04:49]} {[%emt 00:00:09]} 31. Kh2 {[%clk 00:02:14]} {[%emt 00:00:03]} Nxe4
{[%clk 00:04:52]} {[%emt 00:00:03]} 32. fxe4 {[%clk 00:02:08]} {[%emt
00:00:10]} Rxe4 {[%clk 00:04:54]} {[%emt 00:00:02]} 33. Rd1 {[%clk 00:00:27]}
{[%emt 00:01:47]} Qe5 {[%clk 00:04:57]} 34. Kg1 {[%clk 00:00:25]} {[%emt
00:00:06]} Rg6 {[%clk 00:05:01]} {[%emt 00:00:01]} 35. Qd3 {[%clk 00:00:16]}
{[%emt 00:00:14]} Rg5 {[%clk 00:04:51]} {[%emt 00:00:15]} 36. Rd2 {[%clk
00:00:07]} {[%emt 00:00:15]} Re1 {[%clk 00:04:54]} {[%emt 00:00:01]} 0-1

[Event "Championnat de France Universitaire 2022"]
[Site "Limoges, France"]
[Date "2022.02.06"]
[Round "9.2"]
[White "Gault, Emmanuel"]
[Black "Aghamir Alrobiai, Nizar"]
[Result "0-1"]
[TimeControl "15'+5''"]
[WhiteElo "2041"]
[BlackElo "2118"]

1. c4 {[%clk 00:15:08]} {[%emt 00:00:02]} Nf6 {[%clk 00:14:57]} {[%emt
00:00:13]} 2. Nc3 {[%clk 00:15:12]} d5 {[%clk 00:15:02]} 3. cxd5 {[%clk
00:15:15]} {[%emt 00:00:02]} Nxd5 {[%clk 00:15:06]} {[%emt 00:00:01]} 4. g3
{[%clk 00:15:18]} {[%emt 00:00:03]} g6 {[%clk 00:15:09]} 5. Bg2 {[%clk
00:15:21]} {[%emt 00:00:02]} Nb6 {[%clk 00:15:13]} {[%emt 00:00:01]} 6. b3
{[%clk 00:15:23]} {[%emt 00:00:03]} Bg7 {[%clk 00:15:16]} {[%emt 00:00:01]} 7.
Bb2 {[%clk 00:15:27]} {[%emt 00:00:01]} O-O {[%clk 00:15:19]} {[%emt 00:00:04]}
8. Nf3 {[%clk 00:15:30]} e5 {[%clk 00:14:55]} {[%emt 00:00:29]} 9. d3 {[%clk
00:15:32]} {[%emt 00:00:04]} Nc6 {[%clk 00:14:45]} {[%emt 00:00:14]} 10. O-O
{[%clk 00:15:34]} {[%emt 00:00:03]} Nd4 {[%clk 00:14:41]} {[%emt 00:00:09]} 11.
Qd2 {[%clk 00:15:27]} {[%emt 00:00:11]} c6 {[%clk 00:14:26]} {[%emt 00:00:22]}
12. Rac1 {[%clk 00:15:26]} {[%emt 00:00:04]} Be6 {[%clk 00:11:29]} {[%emt
00:03:02]} 13. Ne4 {[%clk 00:15:26]} {[%emt 00:00:05]} Nxf3+ {[%clk 00:11:23]}
{[%emt 00:00:11]} 14. Bxf3 {[%clk 00:15:27]} {[%emt 00:00:04]} Bd5 {[%clk
00:11:23]} {[%emt 00:00:06]} 15. Bg2 {[%clk 00:15:24]} {[%emt 00:00:07]} Re8
{[%clk 00:10:48]} {[%emt 00:00:40]} 16. Rfd1 {[%clk 00:15:11]} {[%emt
00:00:18]} a5 {[%clk 00:09:58]} {[%emt 00:00:56]} 17. Nc5 {[%clk 00:15:08]}
{[%emt 00:00:08]} Bxg2 {[%clk 00:09:58]} {[%emt 00:00:05]} 18. Kxg2 {[%clk
00:15:11]} {[%emt 00:00:02]} Qe7 {[%clk 00:09:48]} {[%emt 00:00:15]} 19. h3
{[%clk 00:13:32]} {[%emt 00:01:44]} a4 {[%clk 00:09:37]} {[%emt 00:00:17]} 20.
b4 {[%clk 00:12:55]} {[%emt 00:00:42]} a3 {[%clk 00:09:31]} {[%emt 00:00:11]}
21. Ba1 {[%clk 00:12:57]} {[%emt 00:00:03]} Nd5 {[%clk 00:08:58]} {[%emt
00:00:37]} 22. e4 {[%clk 00:12:26]} {[%emt 00:00:36]} Nf6 {[%clk 00:08:34]}
{[%emt 00:00:29]} 23. Rc2 {[%clk 00:10:50]} {[%emt 00:01:42]} Red8 {[%clk
00:08:25]} {[%emt 00:00:14]} 24. Qc3 {[%clk 00:10:18]} {[%emt 00:00:38]} Ne8
{[%clk 00:08:10]} {[%emt 00:00:20]} 25. Rf1 {[%clk 00:09:21]} {[%emt 00:01:02]}
Nd6 {[%clk 00:08:11]} {[%emt 00:00:05]} 26. f4 {[%clk 00:08:38]} {[%emt
00:00:47]} Nb5 {[%clk 00:08:14]} {[%emt 00:00:02]} 27. Qc4 {[%clk 00:08:21]}
{[%emt 00:00:23]} Nd4 {[%clk 00:07:56]} {[%emt 00:00:24]} 28. Rcf2 {[%clk
00:08:24]} {[%emt 00:00:02]} b5 {[%clk 00:06:38]} {[%emt 00:01:23]} 29. Qc3
{[%clk 00:07:17]} {[%emt 00:01:12]} exf4 {[%clk 00:06:26]} {[%emt 00:00:17]} 30.
Rxf4 {[%clk 00:06:54]} {[%emt 00:00:27]} Ne6 {[%clk 00:06:28]} {[%emt
00:00:03]} 31. Qc1 {[%clk 00:05:03]} {[%emt 00:01:56]} Nxf4+ {[%clk 00:06:28]}
{[%emt 00:00:05]} 32. Qxf4 {[%clk 00:04:51]} {[%emt 00:00:17]} Bxa1 {[%clk
00:06:28]} {[%emt 00:00:06]} 33. Rxa1 {[%clk 00:04:55]} {[%emt 00:00:02]} Rd4
{[%clk 00:06:11]} {[%emt 00:00:20]} 34. Qd2 {[%clk 00:04:33]} {[%emt 00:00:27]}
h5 {[%clk 00:05:32]} {[%emt 00:00:45]} 35. Rf1 {[%clk 00:04:23]} {[%emt
00:00:15]} h4 {[%clk 00:05:17]} {[%emt 00:00:20]} 36. gxh4 {[%clk 00:04:12]}
{[%emt 00:00:16]} Qxh4 {[%clk 00:04:55]} {[%emt 00:00:27]} 37. Qc3 {[%clk
00:03:42]} {[%emt 00:00:35]} Rad8 {[%clk 00:04:35]} {[%emt 00:00:25]} 38. Qxa3
{[%emt 00:00:03]} Qg5+ {[%clk 00:04:38]} 39. Kf3 {[%clk 00:03:35]} {[%emt
00:00:15]} Qd2 {[%clk 00:04:22]} {[%emt 00:00:21]} 40. Qc1 {[%clk 00:02:26]}
{[%emt 00:01:14]} Rxd3+ {[%clk 00:04:17]} {[%emt 00:00:11]} 41. Nxd3 {[%clk
00:02:29]} {[%emt 00:00:02]} Rxd3+ {[%clk 00:04:21]} {[%emt 00:00:01]} 42. Kg4
{[%clk 00:02:30]} {[%emt 00:00:04]} Qg2+ {[%clk 00:04:25]} {[%emt 00:00:01]} 43.
Kf4 {[%clk 00:02:25]} {[%emt 00:00:09]} Qg3# {[%clk 00:04:28]} {[%emt
00:00:02]} 0-1